[Event "Titled Tuesday Blitz June 13 Late 2023"]
[White "Bayo Milagro, Alvaro"]
[Black "Horvath, Dominik"]
[WhiteFideId "22275240"]
[BlackFideId "1642561"]
[WhiteElo "2270"]
[BlackElo "2407"]
[Result "1/2-1/2"]
[Round "3"]
[TimeControl "180+2"]
[Date "2023.06.13"]
[WhiteClock "0:00:04"]
[BlackClock "0:00:11"]
[Board "50"]

1. d4 {[%clk 0:03:00]}  Nf6 {[%clk 0:02:59]} 2. Nf3 {[%clk 0:03:00]}  d5 {[%clk 0:02:59]} 3. c4 {[%clk 0:03:01]}  e6 {[%clk 0:03:00]} 4. g3 {[%clk 0:03:01]}  dxc4 {[%clk 0:02:34]} 5. Bg2 {[%clk 0:03:00]}  Nbd7 {[%clk 0:02:33]} 6. O-O {[%clk 0:02:34]}  c6 {[%clk 0:02:34]} 7. a4 {[%clk 0:02:33]}  b6 {[%clk 0:02:29]} 8. Qc2 {[%clk 0:02:26]}  Bb7 {[%clk 0:02:29]} 9. Rd1 {[%clk 0:02:17]}  Qc8 {[%clk 0:02:26]} 10. Qxc4 {[%clk 0:02:15]}  c5 {[%clk 0:02:26]} 11. Nc3 {[%clk 0:02:13]}  cxd4 {[%clk 0:02:19]} 12. Qxc8+ {[%clk 0:02:09]}  Rxc8 {[%clk 0:02:19]} 13. Nxd4 {[%clk 0:02:10]}  Bxg2 {[%clk 0:02:18]} 14. Kxg2 {[%clk 0:02:10]}  Bb4 {[%clk 0:02:12]} 15. Ndb5 {[%clk 0:02:04]}  a6 {[%clk 0:01:41]} 16. Nd6+ {[%clk 0:02:00]}  Bxd6 {[%clk 0:01:41]} 17. Rxd6 {[%clk 0:02:01]}  Ke7 {[%clk 0:01:37]} 18. Rd1 {[%clk 0:01:55]}  Nc5 {[%clk 0:01:34]} 19. Be3 {[%clk 0:01:49]}  Nb3 {[%clk 0:01:27]} 20. Ra3 {[%clk 0:01:20]}  Nc5 {[%clk 0:01:27]} 21. a5 {[%clk 0:01:08]}  b5 {[%clk 0:01:19]} 22. Na2 {[%clk 0:00:57]}  Nd5 {[%clk 0:01:07]} 23. Bxc5+ {[%clk 0:00:50]}  Rxc5 {[%clk 0:01:07]} 24. e4 {[%clk 0:00:50]}  Nf6 {[%clk 0:01:02]} 25. Kf3 {[%clk 0:00:25]}  Rc4 {[%clk 0:00:58]} 26. Re3 {[%clk 0:00:16]}  Nd7 {[%clk 0:00:16]} 27. b3 {[%clk 0:00:14]}  Ne5+ {[%clk 0:00:15]} 28. Ke2 {[%clk 0:00:09]}  Rc2+ {[%clk 0:00:14]} 29. Rd2 {[%clk 0:00:10]}  Rxd2+ {[%clk 0:00:15]} 30. Kxd2 {[%clk 0:00:11]}  Rd8+ {[%clk 0:00:15]} 31. Ke2 {[%clk 0:00:09]}  Nc6 {[%clk 0:00:15]} 32. Rc3 {[%clk 0:00:06]}  Nxa5 {[%clk 0:00:15]} 33. Rc7+ {[%clk 0:00:07]}  Kf6 {[%clk 0:00:15]} 34. Nb4 {[%clk 0:00:06]}  Nxb3 {[%clk 0:00:14]} 35. Nxa6 {[%clk 0:00:07]}  Nd4+ {[%clk 0:00:15]} 36. Ke3 {[%clk 0:00:07]}  e5 {[%clk 0:00:14]} 37. Nc5 {[%clk 0:00:05]}  Kg6 {[%clk 0:00:10]} 38. f4 {[%clk 0:00:04]}  Nc2+ {[%clk 0:00:09]} 39. Kf3 {[%clk 0:00:04]}  exf4 {[%clk 0:00:09]} 40. gxf4 {[%clk 0:00:04]}  b4 {[%clk 0:00:10]} 41. Rc6+ {[%clk 0:00:03]}  f6 {[%clk 0:00:10]} 42. f5+ {[%clk 0:00:03]}  Kh6 {[%clk 0:00:10]} 43. Ne6 {[%clk 0:00:02]}  Nd4+ {[%clk 0:00:10]} 44. Nxd4 {[%clk 0:00:02]}  Rxd4 {[%clk 0:00:11]} 45. Rc7 {[%clk 0:00:02]}  Rd3+ {[%clk 0:00:11]} 46. Kg4 {[%clk 0:00:02]}  Re3 {[%clk 0:00:10]} 47. Kf4 {[%clk 0:00:02]}  Rh3 {[%clk 0:00:10]} 48. Rb7 {[%clk 0:00:02]}  b3 {[%clk 0:00:11]} 49. Kg4 {[%clk 0:00:03]}  Re3 {[%clk 0:00:11]} 50. Kf4 {[%clk 0:00:03]}  Rh3 {[%clk 0:00:11]} 51. Kg4 {[%clk 0:00:03]}  Rc3 {[%clk 0:00:12]} 52. Kf4 {[%clk 0:00:03]}  g5+ {[%clk 0:00:12]} 53. fxg6 {[%clk 0:00:03]}  hxg6 {[%clk 0:00:13]} 54. h4 {[%clk 0:00:04]}  Rh3 {[%clk 0:00:12]} 55. Kg4 {[%clk 0:00:04]}  Rc3 {[%clk 0:00:12]} 56. Kf4 {[%clk 0:00:05]}  Rd3 {[%clk 0:00:12]} 57. Kg4 {[%clk 0:00:05]}  Rd4 {[%clk 0:00:12]} 58. Kf3 {[%clk 0:00:05]}  f5 {[%clk 0:00:10]} 59. exf5 {[%clk 0:00:05]}  Rd3+ {[%clk 0:00:10]} 60. Kf4 {[%clk 0:00:04]}  gxf5 {[%clk 0:00:09]} 61. Kxf5 {[%clk 0:00:05]}  Rf3+ {[%clk 0:00:09]} 62. Ke4 {[%clk 0:00:05]}  Rh3 {[%clk 0:00:09]} 63. Kd4 {[%clk 0:00:05]}  Kh5 {[%clk 0:00:09]} 64. Kc4 {[%clk 0:00:04]}  Kxh4 {[%clk 0:00:10]} 65. Rh7+ {[%clk 0:00:04]}  Kg4 {[%clk 0:00:10]} 66. Rxh3 {[%clk 0:00:04]}  Kxh3 {[%clk 0:00:11]} 67. Kxb3 {[%clk 0:00:04]} 1/2-1/2


[Site "https://www.chess.com"]

[Event "Titled Tuesday Blitz June 13 Late 2023"]
[White "Harsh Suresh"]
[Black "Kim, Sergey"]
[WhiteFideId "45018464"]
[BlackFideId "13700570"]
[WhiteElo "2209"]
[BlackElo "2555"]
[Result "1-0"]
[Round "3"]
[TimeControl "180+2"]
[Date "2023.06.13"]
[WhiteClock "0:00:23"]
[BlackClock "0:00:54"]
[Board "51"]

1. e4 {[%clk 0:03:00]}  e5 {[%clk 0:02:59]} 2. Nf3 {[%clk 0:03:00]}  Nc6 {[%clk 0:02:59]} 3. Bc4 {[%clk 0:03:01]}  Bc5 {[%clk 0:02:58]} 4. O-O {[%clk 0:03:00]}  Nf6 {[%clk 0:02:58]} 5. d4 {[%clk 0:03:00]}  Bxd4 {[%clk 0:02:58]} 6. Nxd4 {[%clk 0:03:00]}  Nxd4 {[%clk 0:02:58]} 7. f4 {[%clk 0:03:01]}  d6 {[%clk 0:02:58]} 8. fxe5 {[%clk 0:03:02]}  dxe5 {[%clk 0:02:58]} 9. Bg5 {[%clk 0:03:02]}  Be6 {[%clk 0:02:57]} 10. Na3 {[%clk 0:03:01]}  Qe7 {[%clk 0:02:57]} 11. c3 {[%clk 0:03:01]}  Nc6 {[%clk 0:02:56]} 12. Bxf6 {[%clk 0:02:46]}  gxf6 {[%clk 0:02:55]} 13. Kh1 {[%clk 0:02:45]}  O-O {[%clk 0:02:53]} 14. Qf3 {[%clk 0:02:43]}  Kg7 {[%clk 0:02:51]} 15. Bd5 {[%clk 0:02:39]}  Nd8 {[%clk 0:02:41]} 16. Nc2 {[%clk 0:02:37]}  c6 {[%clk 0:02:40]} 17. Bb3 {[%clk 0:02:37]}  a5 {[%clk 0:02:34]} 18. Ne3 {[%clk 0:02:27]}  a4 {[%clk 0:02:33]} 19. Bc2 {[%clk 0:02:28]}  b5 {[%clk 0:02:23]} 20. Qg3+ {[%clk 0:02:23]}  Kh8 {[%clk 0:02:22]} 21. Qh4 {[%clk 0:02:24]}  Nb7 {[%clk 0:02:11]} 22. Rxf6 {[%clk 0:02:18]}  Rg8 {[%clk 0:02:06]} 23. Raf1 {[%clk 0:02:07]}  Rg7 {[%clk 0:02:01]} 24. Qh5 {[%clk 0:01:59]}  Rag8 {[%clk 0:01:55]} 25. Qxe5 {[%clk 0:01:58]}  Qc5 {[%clk 0:01:44]} 26. Qf4 {[%clk 0:01:43]}  Nd6 {[%clk 0:01:38]} 27. e5 {[%clk 0:01:40]}  Nc4 {[%clk 0:01:26]} 28. Nxc4 {[%clk 0:00:56]}  Qxc4 {[%clk 0:01:26]} 29. Rh6 {[%clk 0:00:46]}  Qxf4 {[%clk 0:01:14]} 30. Rxf4 {[%clk 0:00:47]}  Rd8 {[%clk 0:01:09]} 31. Rf2 {[%clk 0:00:31]}  Bxa2 {[%clk 0:01:08]} 32. Rxc6 {[%clk 0:00:23]}  Bd5 {[%clk 0:01:02]} 33. Rd6 {[%clk 0:00:23]}  Rxd6 {[%clk 0:01:00]} 34. exd6 {[%clk 0:00:24]}  Rg6 {[%clk 0:00:54]} 35. Bxg6 {[%clk 0:00:23]} 1-0


[Site "https://www.chess.com"]

[Event "Titled Tuesday Blitz June 13 Late 2023"]
[White "Fernandez Guillen, Ernesto J."]
[Black "Janaszak, Dawid"]
[WhiteFideId "3512428"]
[BlackFideId "1119206"]
[WhiteElo "2434"]
[BlackElo "2220"]
[Result "1-0"]
[Round "3"]
[TimeControl "180+2"]
[Date "2023.06.13"]
[WhiteClock "0:00:03"]
[BlackClock "0:00:00"]
[Board "53"]

1. e4 {[%clk 0:02:56]}  c5 {[%clk 0:02:56]} 2. Nf3 {[%clk 0:02:51]}  g6 {[%clk 0:02:56]} 3. d4 {[%clk 0:02:51]}  cxd4 {[%clk 0:02:57]} 4. Nxd4 {[%clk 0:02:52]}  Nc6 {[%clk 0:02:55]} 5. Nc3 {[%clk 0:02:50]}  Bg7 {[%clk 0:02:55]} 6. Be3 {[%clk 0:02:51]}  Nf6 {[%clk 0:02:56]} 7. Bc4 {[%clk 0:02:51]}  O-O {[%clk 0:02:55]} 8. Bb3 {[%clk 0:02:52]}  Re8 {[%clk 0:02:54]} 9. h4 {[%clk 0:02:46]}  h5 {[%clk 0:02:44]} 10. f3 {[%clk 0:02:23]}  d5 {[%clk 0:02:37]} 11. exd5 {[%clk 0:02:22]}  Na5 {[%clk 0:02:34]} 12. Nde2 {[%clk 0:02:22]}  Nxb3 {[%clk 0:02:29]} 13. axb3 {[%clk 0:02:23]}  e6 {[%clk 0:02:25]} 14. dxe6 {[%clk 0:02:19]}  Bxe6 {[%clk 0:02:25]} 15. Qxd8 {[%clk 0:02:18]}  Raxd8 {[%clk 0:02:26]} 16. Kf2 {[%clk 0:02:17]}  a6 {[%clk 0:02:22]} 17. Rhd1 {[%clk 0:02:16]}  Nd5 {[%clk 0:02:18]} 18. Nxd5 {[%clk 0:02:13]}  Bxd5 {[%clk 0:02:18]} 19. Bd4 {[%clk 0:01:56]}  Bh6 {[%clk 0:01:49]} 20. g3 {[%clk 0:01:43]}  Bc6 {[%clk 0:01:35]} 21. Nf4 {[%clk 0:01:42]}  Bxf4 {[%clk 0:01:31]} 22. gxf4 {[%clk 0:01:40]}  Rd5 {[%clk 0:01:27]} 23. Be5 {[%clk 0:01:25]}  Red8 {[%clk 0:01:23]} 24. Rxd5 {[%clk 0:01:25]}  Rxd5 {[%clk 0:01:23]} 25. Ke3 {[%clk 0:01:25]}  Kf8 {[%clk 0:01:16]} 26. c4 {[%clk 0:01:24]}  Rd7 {[%clk 0:01:14]} 27. b4 {[%clk 0:01:12]}  Re7 {[%clk 0:01:11]} 28. Kd4 {[%clk 0:01:02]}  Rd7+ {[%clk 0:01:09]} 29. Kc5 {[%clk 0:01:01]}  Bxf3 {[%clk 0:01:06]} 30. b5 {[%clk 0:00:55]}  axb5 {[%clk 0:00:58]} 31. Bf6 {[%clk 0:00:48]}  Rc7+ {[%clk 0:00:31]} 32. Kxb5 {[%clk 0:00:48]}  Ke8 {[%clk 0:00:26]} 33. Ra3 {[%clk 0:00:25]}  Bg2 {[%clk 0:00:22]} 34. Rg3 {[%clk 0:00:20]}  Bf1 {[%clk 0:00:20]} 35. b3 {[%clk 0:00:19]}  Rc6 {[%clk 0:00:19]} 36. Bc3 {[%clk 0:00:17]}  Kd7 {[%clk 0:00:17]} 37. f5 {[%clk 0:00:16]}  gxf5 {[%clk 0:00:15]} 38. Rf3 {[%clk 0:00:16]}  Bg2 {[%clk 0:00:11]} 39. Rxf5 {[%clk 0:00:17]}  Ke7 {[%clk 0:00:07]} 40. Rxh5 {[%clk 0:00:16]}  Rg6 {[%clk 0:00:07]} 41. Re5+ {[%clk 0:00:13]}  Kd6 {[%clk 0:00:07]} 42. Rf5 {[%clk 0:00:11]}  Rg3 {[%clk 0:00:06]} 43. Kb4 {[%clk 0:00:08]}  Ke6 {[%clk 0:00:07]} 44. Rf6+ {[%clk 0:00:08]}  Ke7 {[%clk 0:00:07]} 45. Rh6 {[%clk 0:00:07]}  Bc6 {[%clk 0:00:06]} 46. Rh8 {[%clk 0:00:07]}  Rh3 {[%clk 0:00:06]} 47. h5 {[%clk 0:00:07]}  Be4 {[%clk 0:00:05]} 48. h6 {[%clk 0:00:07]}  Kd7 {[%clk 0:00:05]} 49. Bg7 {[%clk 0:00:04]}  Bc2 {[%clk 0:00:04]} 50. Bc3 {[%clk 0:00:04]}  Kc7 {[%clk 0:00:03]} 51. Rf8 {[%clk 0:00:04]}  Rxh6 {[%clk 0:00:02]} 52. Rxf7+ {[%clk 0:00:05]}  Kc8 {[%clk 0:00:02]} 53. Be5 {[%clk 0:00:05]}  Rb6+ {[%clk 0:00:01]} 54. Kc5 {[%clk 0:00:04]}  Rxb3 {[%clk 0:00:01]} 55. Rc7+ {[%clk 0:00:03]}  Kd8 {[%clk 0:00:01]} 56. Rg7 {[%clk 0:00:04]}  Kc8 {[%clk 0:00:01]} 57. Kd6 {[%clk 0:00:03]}  Rd3+ {[%clk 0:00:00]} 58. Kc5 {[%clk 0:00:03]} 1-0


[Site "https://www.chess.com"]

[Event "Titled Tuesday Blitz June 13 Late 2023"]
[White "Saveliev, Alexei"]
[Black "Bernado Lopez, Roger"]
[WhiteFideId "24128546"]
[BlackFideId "24585009"]
[WhiteElo "2271"]
[BlackElo "2097"]
[Result "1-0"]
[Round "3"]
[TimeControl "180+2"]
[Date "2023.06.13"]
[WhiteClock "0:00:13"]
[BlackClock "0:00:04"]
[Board "59"]

1. c4 {[%clk 0:03:00]}  e6 {[%clk 0:02:59]} 2. Nc3 {[%clk 0:03:01]}  d5 {[%clk 0:02:59]} 3. cxd5 {[%clk 0:03:02]}  exd5 {[%clk 0:03:00]} 4. d4 {[%clk 0:03:03]}  c6 {[%clk 0:03:00]} 5. Nf3 {[%clk 0:03:03]}  Bf5 {[%clk 0:03:00]} 6. Bg5 {[%clk 0:02:57]}  Be7 {[%clk 0:03:00]} 7. Bxe7 {[%clk 0:02:55]}  Qxe7 {[%clk 0:02:58]} 8. e3 {[%clk 0:02:56]}  Nf6 {[%clk 0:02:58]} 9. Bd3 {[%clk 0:02:57]}  Bxd3 {[%clk 0:02:58]} 10. Qxd3 {[%clk 0:02:57]}  Nbd7 {[%clk 0:02:58]} 11. O-O {[%clk 0:02:58]}  O-O {[%clk 0:02:58]} 12. Rab1 {[%clk 0:02:58]}  a5 {[%clk 0:02:56]} 13. Qc2 {[%clk 0:02:59]}  Rfe8 {[%clk 0:02:53]} 14. a3 {[%clk 0:02:56]}  Nb6 {[%clk 0:02:47]} 15. Ne5 {[%clk 0:02:53]}  Nfd7 {[%clk 0:02:45]} 16. Nd3 {[%clk 0:02:52]}  Nc4 {[%clk 0:02:29]} 17. Rbe1 {[%clk 0:02:50]}  Qh4 {[%clk 0:02:21]} 18. g3 {[%clk 0:02:35]}  Qh6 {[%clk 0:02:19]} 19. Kg2 {[%clk 0:02:31]}  Qg6 {[%clk 0:02:19]} 20. Rc1 {[%clk 0:02:25]}  Rxe3 {[%clk 0:02:10]} 21. Nf4 {[%clk 0:02:21]}  Qxc2 {[%clk 0:02:08]} 22. Rxc2 {[%clk 0:02:22]}  Ree8 {[%clk 0:02:06]} 23. b3 {[%clk 0:02:17]}  Nd6 {[%clk 0:02:06]} 24. Na4 {[%clk 0:02:06]}  g6 {[%clk 0:02:03]} 25. h4 {[%clk 0:02:05]}  h5 {[%clk 0:02:03]} 26. Rb1 {[%clk 0:02:01]}  Nb5 {[%clk 0:01:54]} 27. Rd2 {[%clk 0:01:55]}  Nxa3 {[%clk 0:01:53]} 28. Ra1 {[%clk 0:01:53]}  Nb5 {[%clk 0:01:54]} 29. Rh1 {[%clk 0:01:48]}  Re4 {[%clk 0:01:47]} 30. Rhd1 {[%clk 0:01:42]}  Rae8 {[%clk 0:01:41]} 31. Kf1 {[%clk 0:01:38]}  Kg7 {[%clk 0:01:36]} 32. Nh3 {[%clk 0:01:37]}  f6 {[%clk 0:01:30]} 33. Ng1 {[%clk 0:01:36]}  Nf8 {[%clk 0:01:23]} 34. Nc5 {[%clk 0:01:31]}  R4e7 {[%clk 0:01:23]} 35. Nf3 {[%clk 0:01:30]}  Nd7 {[%clk 0:01:18]} 36. Na4 {[%clk 0:01:25]}  Nd6 {[%clk 0:01:08]} 37. Rb2 {[%clk 0:01:18]}  Nf5 {[%clk 0:01:02]} 38. Nc3 {[%clk 0:01:14]}  Nf8 {[%clk 0:00:56]} 39. b4 {[%clk 0:01:07]}  axb4 {[%clk 0:00:56]} 40. Rxb4 {[%clk 0:01:08]}  Ne6 {[%clk 0:00:55]} 41. Ra4 {[%clk 0:01:05]}  b5 {[%clk 0:00:55]} 42. Ra6 {[%clk 0:01:03]}  Rc7 {[%clk 0:00:50]} 43. Rb6 {[%clk 0:00:59]}  Kf7 {[%clk 0:00:49]} 44. Kg2 {[%clk 0:00:54]}  Ra8 {[%clk 0:00:49]} 45. Rc1 {[%clk 0:00:50]}  Nfxd4 {[%clk 0:00:36]} 46. Nxd4 {[%clk 0:00:51]}  Nxd4 {[%clk 0:00:36]} 47. Nxd5 {[%clk 0:00:49]}  Rca7 {[%clk 0:00:32]} 48. Nb4 {[%clk 0:00:40]}  Rc8 {[%clk 0:00:28]} 49. Nxc6 {[%clk 0:00:32]}  Nxc6 {[%clk 0:00:26]} 50. Rcxc6 {[%clk 0:00:29]}  Rxc6 {[%clk 0:00:26]} 51. Rxc6 {[%clk 0:00:30]}  Rb7 {[%clk 0:00:27]} 52. Kf3 {[%clk 0:00:23]}  b4 {[%clk 0:00:27]} 53. Rc2 {[%clk 0:00:22]}  b3 {[%clk 0:00:27]} 54. Rb2 {[%clk 0:00:23]}  Ke6 {[%clk 0:00:28]} 55. Ke4 {[%clk 0:00:23]}  Rb4+ {[%clk 0:00:27]} 56. Kd3 {[%clk 0:00:24]}  Ke5 {[%clk 0:00:25]} 57. Kc3 {[%clk 0:00:24]}  Rb8 {[%clk 0:00:26]} 58. Re2+ {[%clk 0:00:24]}  Kf5 {[%clk 0:00:25]} 59. Kb2 {[%clk 0:00:23]}  Kg4 {[%clk 0:00:25]} 60. Re6 {[%clk 0:00:23]}  Kf5 {[%clk 0:00:25]} 61. Rc6 {[%clk 0:00:23]}  Ke5 {[%clk 0:00:16]} 62. Rc5+ {[%clk 0:00:23]}  Ke4 {[%clk 0:00:16]} 63. Rc6 {[%clk 0:00:23]}  Ke5 {[%clk 0:00:14]} 64. Rc5+ {[%clk 0:00:23]}  Ke6 {[%clk 0:00:10]} 65. Rc6+ {[%clk 0:00:23]}  Ke7 {[%clk 0:00:10]} 66. Rc7+ {[%clk 0:00:23]}  Kd6 {[%clk 0:00:10]} 67. Rg7 {[%clk 0:00:24]}  Ke5 {[%clk 0:00:04]} 68. Rxg6 {[%clk 0:00:24]}  Kf5 {[%clk 0:00:04]} 69. Rh6 {[%clk 0:00:24]}  Re8 {[%clk 0:00:02]} 70. Rxh5+ {[%clk 0:00:20]}  Kg4 {[%clk 0:00:03]} 71. Rh6 {[%clk 0:00:16]}  Re2+ {[%clk 0:00:02]} 72. Kxb3 {[%clk 0:00:17]}  Rxf2 {[%clk 0:00:03]} 73. Rg6+ {[%clk 0:00:18]}  Kh5 {[%clk 0:00:03]} 74. Rg8 {[%clk 0:00:17]}  f5 {[%clk 0:00:02]} 75. Kc3 {[%clk 0:00:12]}  f4 {[%clk 0:00:02]} 76. Rg5+ {[%clk 0:00:13]}  Kh6 {[%clk 0:00:02]} 77. g4 {[%clk 0:00:14]}  f3 {[%clk 0:00:02]} 78. Kd3 {[%clk 0:00:14]}  Rh2 {[%clk 0:00:03]} 79. Rh5+ {[%clk 0:00:14]}  Kg6 {[%clk 0:00:03]} 80. Ke3 {[%clk 0:00:14]}  f2 {[%clk 0:00:03]} 81. Ke2 {[%clk 0:00:15]}  Kg7 {[%clk 0:00:02]} 82. Kf1 {[%clk 0:00:15]}  Rh1+ {[%clk 0:00:01]} 83. Kxf2 {[%clk 0:00:15]}  Ra1 {[%clk 0:00:02]} 84. Rf5 {[%clk 0:00:14]}  Ra2+ {[%clk 0:00:02]} 85. Kg3 {[%clk 0:00:15]}  Ra4 {[%clk 0:00:02]} 86. h5 {[%clk 0:00:15]}  Kh7 {[%clk 0:00:01]} 87. Kh4 {[%clk 0:00:15]}  Kg7 {[%clk 0:00:02]} 88. Kg5 {[%clk 0:00:15]}  Ra6 {[%clk 0:00:01]} 89. Rb5 {[%clk 0:00:16]}  Rc6 {[%clk 0:00:01]} 90. Rb7+ {[%clk 0:00:15]}  Kg8 {[%clk 0:00:01]} 91. h6 {[%clk 0:00:13]}  Rc5+ {[%clk 0:00:02]} 92. Kg6 {[%clk 0:00:13]}  Rc6+ {[%clk 0:00:02]} 93. Kh5 {[%clk 0:00:14]}  Rc5+ {[%clk 0:00:03]} 94. g5 {[%clk 0:00:14]}  Rc1 {[%clk 0:00:03]} 95. Ra7 {[%clk 0:00:13]}  Rc6 {[%clk 0:00:02]} 96. g6 {[%clk 0:00:12]}  Rc5+ {[%clk 0:00:02]} 97. Kg4 {[%clk 0:00:12]}  Rc4+ {[%clk 0:00:03]} 98. Kf5 {[%clk 0:00:13]}  Rc5+ {[%clk 0:00:03]} 99. Kf4 {[%clk 0:00:14]}  Rc4+ {[%clk 0:00:04]} 100. Ke5 {[%clk 0:00:14]}  Rc5+ {[%clk 0:00:04]} 101. Kd4 {[%clk 0:00:14]}  Rc8 {[%clk 0:00:04]} 102. Kd5 {[%clk 0:00:14]}  Rf8 {[%clk 0:00:04]} 103. Ke6 {[%clk 0:00:13]}  Kh8 {[%clk 0:00:04]} 1-0


[Site "https://www.chess.com"]

[Event "Titled Tuesday Blitz June 13 Late 2023"]
[White "angelgab3"]
[Black "Mikaelyan, Arman"]
[BlackFideId "13304852"]
[WhiteElo "2523"]
[BlackElo "2456"]
[Result "1/2-1/2"]
[Round "3"]
[TimeControl "180+2"]
[Date "2023.06.13"]
[WhiteClock "0:00:29"]
[BlackClock "0:00:22"]
[Board "61"]

1. e4 {[%clk 0:02:58]}  b6 {[%clk 0:02:58]} 2. d4 {[%clk 0:02:57]}  Bb7 {[%clk 0:02:58]} 3. Nc3 {[%clk 0:02:58]}  e6 {[%clk 0:02:59]} 4. Bd3 {[%clk 0:02:57]}  Bb4 {[%clk 0:02:57]} 5. Ne2 {[%clk 0:02:57]}  Nf6 {[%clk 0:02:57]} 6. O-O {[%clk 0:02:57]}  d5 {[%clk 0:02:51]} 7. e5 {[%clk 0:02:57]}  Ne4 {[%clk 0:02:51]} 8. a3 {[%clk 0:02:54]}  Bxc3 {[%clk 0:02:45]} 9. bxc3 {[%clk 0:02:55]}  Ba6 {[%clk 0:02:43]} 10. a4 {[%clk 0:02:36]}  h6 {[%clk 0:02:35]} 11. Ba3 {[%clk 0:02:34]}  c5 {[%clk 0:02:29]} 12. Re1 {[%clk 0:02:30]}  O-O {[%clk 0:02:26]} 13. Bxe4 {[%clk 0:02:25]}  dxe4 {[%clk 0:02:27]} 14. Ng3 {[%clk 0:02:25]}  Qd5 {[%clk 0:02:16]} 15. dxc5 {[%clk 0:02:21]}  bxc5 {[%clk 0:02:12]} 16. Rxe4 {[%clk 0:02:04]}  Nd7 {[%clk 0:02:07]} 17. Qxd5 {[%clk 0:01:52]}  exd5 {[%clk 0:02:08]} 18. Ree1 {[%clk 0:01:52]}  Rfe8 {[%clk 0:02:04]} 19. f4 {[%clk 0:01:50]}  Rac8 {[%clk 0:01:58]} 20. Nf5 {[%clk 0:01:48]}  Rc6 {[%clk 0:01:53]} 21. Nd6 {[%clk 0:01:42]}  Rb8 {[%clk 0:01:53]} 22. Rad1 {[%clk 0:01:38]}  Nb6 {[%clk 0:01:50]} 23. a5 {[%clk 0:01:34]}  Nc4 {[%clk 0:01:49]} 24. Nxc4 {[%clk 0:01:35]}  Bxc4 {[%clk 0:01:50]} 25. Rb1 {[%clk 0:01:35]}  Rb5 {[%clk 0:01:43]} 26. Rxb5 {[%clk 0:01:30]}  Bxb5 {[%clk 0:01:44]} 27. Rd1 {[%clk 0:01:25]}  Bc4 {[%clk 0:01:44]} 28. Rb1 {[%clk 0:01:26]}  d4 {[%clk 0:01:37]} 29. Rb8+ {[%clk 0:01:11]}  Kh7 {[%clk 0:01:37]} 30. Rb7 {[%clk 0:01:12]}  dxc3 {[%clk 0:01:14]} 31. Rxa7 {[%clk 0:01:11]}  Bd5 {[%clk 0:01:15]} 32. Rd7 {[%clk 0:00:47]}  Be4 {[%clk 0:01:14]} 33. Rd6 {[%clk 0:00:47]}  Rc8 {[%clk 0:01:10]} 34. Rd1 {[%clk 0:00:40]}  Ra8 {[%clk 0:00:50]} 35. Bxc5 {[%clk 0:00:39]}  Rxa5 {[%clk 0:00:48]} 36. Bb4 {[%clk 0:00:40]}  Ra2 {[%clk 0:00:49]} 37. Bxc3 {[%clk 0:00:41]}  Rxc2 {[%clk 0:00:49]} 38. Bd2 {[%clk 0:00:41]}  Kg6 {[%clk 0:00:49]} 39. h3 {[%clk 0:00:34]}  h5 {[%clk 0:00:47]} 40. Re1 {[%clk 0:00:32]}  Kf5 {[%clk 0:00:46]} 41. Re2 {[%clk 0:00:32]}  Bd3 {[%clk 0:00:44]} 42. Rf2 {[%clk 0:00:32]}  h4 {[%clk 0:00:43]} 43. Kh2 {[%clk 0:00:32]}  Ke4 {[%clk 0:00:43]} 44. Be1 {[%clk 0:00:20]}  Rc1 {[%clk 0:00:41]} 45. Ba5 {[%clk 0:00:20]}  g6 {[%clk 0:00:37]} 46. Bd8 {[%clk 0:00:20]}  Rf1 {[%clk 0:00:19]} 47. Bxh4 {[%clk 0:00:21]}  Rxf2 {[%clk 0:00:18]} 48. Bxf2 {[%clk 0:00:21]}  Kxf4 {[%clk 0:00:18]} 49. Bg3+ {[%clk 0:00:21]}  Ke4 {[%clk 0:00:17]} 50. Kg1 {[%clk 0:00:21]}  Bc4 {[%clk 0:00:17]} 51. Kf2 {[%clk 0:00:22]}  Bd5 {[%clk 0:00:17]} 52. Bh2 {[%clk 0:00:22]}  Kf5 {[%clk 0:00:16]} 53. g4+ {[%clk 0:00:23]}  Ke6 {[%clk 0:00:14]} 54. Ke3 {[%clk 0:00:22]}  f6 {[%clk 0:00:14]} 55. exf6 {[%clk 0:00:23]}  Kxf6 {[%clk 0:00:15]} 56. Kf4 {[%clk 0:00:23]}  g5+ {[%clk 0:00:14]} 57. Kg3 {[%clk 0:00:24]}  Kg6 {[%clk 0:00:14]} 58. Bg1 {[%clk 0:00:24]}  Be4 {[%clk 0:00:14]} 59. Bd4 {[%clk 0:00:25]}  Bd5 {[%clk 0:00:14]} 60. Be5 {[%clk 0:00:26]}  Be4 {[%clk 0:00:14]} 61. Bb2 {[%clk 0:00:27]}  Bd5 {[%clk 0:00:15]} 62. Bc1 {[%clk 0:00:27]}  Bc6 {[%clk 0:00:15]} 63. Bd2 {[%clk 0:00:28]}  Bd5 {[%clk 0:00:15]} 64. Be3 {[%clk 0:00:29]}  Bc6 {[%clk 0:00:16]} 65. Kf2 {[%clk 0:00:30]}  Bd5 {[%clk 0:00:16]} 66. Kg3 {[%clk 0:00:30]}  Bc6 {[%clk 0:00:17]} 67. Ba7 {[%clk 0:00:31]}  Bd5 {[%clk 0:00:17]} 68. Bb8 {[%clk 0:00:32]}  Bc6 {[%clk 0:00:18]} 69. Bc7 {[%clk 0:00:33]}  Bd5 {[%clk 0:00:18]} 70. Bd6 {[%clk 0:00:34]}  Bc6 {[%clk 0:00:19]} 71. Be7 {[%clk 0:00:35]}  Bd5 {[%clk 0:00:19]} 72. Bd8 {[%clk 0:00:35]}  Bc6 {[%clk 0:00:19]} 73. Be7 {[%clk 0:00:33]}  Bd5 {[%clk 0:00:20]} 74. Bxg5 {[%clk 0:00:32]}  Kxg5 {[%clk 0:00:19]} 75. h4+ {[%clk 0:00:33]}  Kg6 {[%clk 0:00:20]} 76. Kf4 {[%clk 0:00:34]}  Be6 {[%clk 0:00:20]} 77. Kg3 {[%clk 0:00:31]}  Bd7 {[%clk 0:00:20]} 78. Kf4 {[%clk 0:00:30]}  Bc8 {[%clk 0:00:20]} 79. Kg3 {[%clk 0:00:27]}  Bd7 {[%clk 0:00:20]} 80. Kf4 {[%clk 0:00:28]}  Bc8 {[%clk 0:00:21]} 81. Kg3 {[%clk 0:00:29]}  Bd7 {[%clk 0:00:22]} 1/2-1/2


[Site "https://www.chess.com"]